bitfinex-derivatives/quotes_ETHF0:USTF0_20250422
["timestamp","ask_amount","ask_price","bid_price","bid_amount"]
[1745349302868,1.17403,1702.3,1702.2,3.2078]
[1745349303073,3.72513,1702.3,1702.2,3.2078]
[1745349304269,3.72513,1702.3,1702.2,9.5298]
[1745349304774,3.72513,1702.3,1702.2,10.7039]
[1745349308280,3.72513,1702.3,1702.2,9.5298]
[1745349308475,8.72513,1702.3,1702.2,6.322]
[1745349309070,1.17424,1702.0,1701.9,1.1743]
[1745349309779,2.8391,1702.1,1702.0,1.17424]
[1745349310080,2.8391,1702.1,1702.0,4.38204]
[1745349310276,2.8391,1702.1,1702.0,10.70404]
[1745349310677,2.8391,1702.1,1702.0,7.49624]
[1745349310878,2.8391,1702.1,1702.0,10.70404]
[1745349312375,2.8391,1702.1,1702.0,7.49624]
[1745349312678,2.8391,1702.1,1702.0,6.322]
[1745349313175,1.17431,1701.9,1701.8,4.39098238]
[1745349313773,2.91411,1701.9,1701.8,4.39098238]
[1745349314183,2.91411,1701.9,1701.8,10.71298238]
[1745349314873,2.91411,1701.9,1701.8,9.53861238]
[1745349315069,2.91411,1701.9,1701.8,6.33081238]
[1745349316369,2.91411,1701.9,1701.8,9.53861238]
[1745349316680,2.91411,1701.9,1701.8,6.33081238]
[1745349317383,2.91411,1701.9,1701.8,0.00881238]
[1745349317574,2.91411,1701.9,1701.8,1.18318238]
[1745349317880,2.91411,1701.9,1701.8,0.00881238]
[1745349318077,2.91411,1701.9,1701.8,1.18318238]
[1745349318279,2.91411,1701.9,1701.8,7.50518238]
[1745349318474,2.91411,1701.9,1701.8,6.33081238]
[1745349318675,2.91411,1701.9,1701.8,7.50518238]
[1745349318875,2.91411,1701.9,1701.8,12.44638238]
[1745349319771,2.91411,1701.9,1701.8,11.27201238]
[1745349320078,2.91411,1701.9,1701.8,9.53861238]
[1745349321080,2.91411,1701.9,1701.8,10.71298238]
[1745349321884,1.18309238,1702.0,1701.9,1.17431]
[1745349322189,1.18309238,1702.0,1701.9,10.89701]
[1745349322378,5.91,1702.1,1702.0,1.17424]
[1745349322573,3.948,1702.2,1702.1,1.17417]
[1745349322882,3.948,1702.5,1702.4,1.17396]
[1745349323180,1.17388,1702.6,1702.5,1.17387]
[1745349323384,1.17388,1702.6,1702.5,1.6863]
[1745349323684,2.80788,1702.6,1702.5,4.8941]
[1745349323883,2.80788,1702.6,1702.5,6.06799]
[1745349324075,2.80788,1702.6,1702.5,12.38999]
[1745349324280,2.07762238,1702.7,1702.6,1.17382]
[1745349324479,2.07762238,1702.7,1702.6,1.6863]
[1745349324683,3.71162238,1702.7,1702.6,1.6863]
[1745349324887,1.17382,1702.6,1702.5,9.5298]
[1745349325080,2.80782,1702.6,1702.5,9.5298]
[1745349325280,2.80782,1702.6,1702.5,6.322]
[1745349326184,1.17396,1702.4,1702.3,3.2078]
[1745349326889,2.92936,1702.4,1702.3,4.38183]
[1745349327080,2.92936,1702.4,1702.3,12.45953]
[1745349328088,2.00704,1702.5,1702.4,1.17396]
[1745349328390,2.00704,1702.5,1702.4,1.7557]
[1745349328582,3.63894,1702.5,1702.4,1.7557]
[1745349328987,3.63894,1702.5,1702.4,2.92966]
[1745349329186,3.63894,1702.5,1702.4,9.25166]
[1745349330284,1.17394,1702.5,1702.4,9.25166]
[1745349330479,1.17394,1702.5,1702.4,8.0777]
[1745349330680,4.67794238,1702.7,1702.6,1.17382]
[1745349330681,0.00881238,1702.7,1702.6,1.17382]
[1745349330984,1.18256238,1702.7,1702.6,4.38162]
[1745349331184,1.18256238,1702.7,1702.6,6.91222]
[1745349331881,1.17382,1702.6,1702.5,7.1598]
[1745349332087,2.78752,1702.6,1702.5,7.1598]
[1745349332690,2.78752,1702.6,1702.5,8.7789]
[1745349332994,2.78752,1702.6,1702.5,7.9411]
[1745349333195,2.78752,1702.6,1702.5,1.6191]
[1745349333596,2.78752,1702.6,1702.5,2.79299]
[1745349338093,2.78752,1702.6,1702.5,9.11499]
[1745349340089,0.00881238,1702.7,1702.6,1.17382]
[1745349340401,0.00881238,1702.7,1702.6,6.97162]
[1745349343596,1.18256238,1702.7,1702.6,6.97162]
[1745349344287,1.18256238,1702.7,1702.6,3.2078]
[1745349344495,1.17382,1702.6,1702.5,6.322]
[1745349344696,2.05452,1702.6,1702.5,6.322]
[1745349345198,1.17396,1702.4,1702.3,3.2078]
[1745349345395,1.17403,1702.3,1702.2,1.6682]
[1745349345601,40.8,1702.3,1701.9,3.2078]
[1745349345802,1.17417,1702.1,1702.0,2.84243]
[1745349346003,3.84275,1702.2,1702.1,1.17417]
[1745349346201,3.84275,1702.2,1702.1,1.6682]
[1745349346908,1.17424,1702.0,1701.9,4.38211]
[1745349347103,1.17424,1702.0,1701.9,6.01991]
[1745349348203,1.17424,1702.0,1701.9,12.34191]
[1745349349006,1.17424,1702.0,1701.9,12.34186]
[1745349349300,1.17424,1702.0,1701.9,12.34185]
[1745349349904,1.17424,1702.0,1701.9,9.5298]
[1745349351104,1.17424,1702.0,1701.9,3.2078]
[1745349351607,1.17431,1701.9,1701.8,2.95157238]
[1745349351803,1.99101,1701.9,1701.8,2.95157238]
[1745349352214,1.99101,1701.9,1701.8,9.27357238]
[1745349352400,1.99101,1701.9,1701.8,8.09921238]
[1745349352803,1.99101,1701.9,1701.8,6.33081238]
[1745349353304,1.99101,1701.9,1701.8,0.00881238]
[1745349356810,3.60491,1701.9,1701.8,0.00881238]
[1745349358707,7.55091,1701.9,1701.8,0.00881238]
[1745349361809,1.17451,1701.6,1701.5,3.2078]
[1745349362112,1.17451,1701.6,1701.5,6.14485]
[1745349362618,1.6847,1701.7,1701.6,1.17451]
[1745349362811,1.17442,1701.8,1701.7,1.17444]
[1745349363005,0.00881238,1701.8,1701.7,5.22584]
[1745349363212,1.17417,1702.2,1702.1,1.17414]
[1745349363416,40.8,1702.3,1702.0,5.734]
[1745349363715,1.1741,1702.2,1702.1,1.6822]
[1745349364012,1.1741,1702.2,1702.1,2.85637]
[1745349364202,44.55924,1702.3,1702.2,1.1741]
[1745349364203,41.97405,1702.3,1702.2,1.1741]
[1745349364409,0.00881238,1702.3,1702.2,6.0641]
[1745349365215,0.00881238,1702.3,1702.2,12.3861]
[1745349365805,1.18284238,1702.3,1702.2,11.212]
[1745349366611,1.18284238,1702.3,1702.2,7.35593]
[1745349366612,6.18284238,1702.3,1702.2,7.35593]
[1745349366809,15.01864238,1702.3,1702.2,4.84791524]
[1745349367016,15.10942238,1702.3,1702.2,1.26308524]
[1745349367218,15.10942238,1702.3,1701.5,2.86369238]
[1745349367219,1.17451,1701.6,1701.5,2.86369238]
[1745349367810,1.17451,1701.6,1701.5,1.68911238]
[1745349368217,1.17451,1701.6,1701.5,8.01111238]
[1745349368917,2.79538,1701.7,1701.5,9.18569238]
[1745349369114,2.79538,1701.7,1701.6,1.69]
[1745349369313,1.17448,1701.7,1701.6,1.69]
[1745349370113,1.17448,1701.7,1701.6,2.86451]
[1745349370313,1.17448,1701.7,1701.6,6.07231]
[1745349370619,1.17448,1701.7,1701.6,4.8978]
[1745349370819,1.17448,1701.7,1701.6,6.07231]
[1745349371315,1.17448,1701.7,1701.6,1.69]
[1745349372421,1.17448,1701.7,1701.5,6.33081238]
[1745349372422,1.17451,1701.6,1701.5,6.33081238]
[1745349372618,2.89441,1701.6,1701.5,5.14675238]
[1745349372823,7.89441,1701.6,1701.5,3.51933238]
[1745349373014,48.69441,1701.6,1701.5,2.33562238]
[1745349373215,1.17479,1701.2,1701.1,1.7098]
[1745349374526,1.72871238,1701.3,1701.2,1.17479]
[1745349374527,1.18358238,1701.3,1701.2,1.17479]
[1745349374821,1.18353238,1701.3,1701.2,1.17479]
[1745349375214,0.00881238,1701.3,1701.2,7.49679]
[1745349375415,1.18353238,1701.3,1701.2,7.49679]
[1745349376823,0.00881238,1701.3,1701.2,9.13059]
[1745349377921,1.18353238,1701.3,1701.2,9.13059]
[1745349378322,0.00881238,1701.3,1701.2,9.13059]
[1745349378517,1.18353238,1701.3,1701.2,9.13059]
[1745349378720,0.00881238,1701.3,1701.2,9.13059]
[1745349379124,1.18353238,1701.3,1701.2,9.13059]
[1745349379327,0.00881238,1701.3,1701.2,9.13059]
[1745349381820,4.0693,1701.8,1701.7,1.17444]
[1745349382020,1.17439,1701.8,1701.7,1.17438]
[1745349382321,45.7082,1702.0,1701.9,1.17431]
[1745349382521,1.17431,1701.9,1701.8,2.04542]
[1745349382720,1.17431,1701.9,1701.8,3.73962]
[1745349383318,40.80881238,1702.0,1701.9,1.17431]
[1745349383621,40.80881238,1702.0,1701.9,2.81351]
[1745349383827,0.00881238,1702.0,1701.9,2.81351]
[1745349384329,41.98305238,1702.0,1701.9,6.322]
[1745349385329,41.98305238,1702.0,1701.9,1.17431]
[1745349387425,1.17431,1701.9,1701.8,2.94193]
[1745349387626,1.1744,1701.8,1701.7,1.17441]
[1745349390324,1.17441,1701.8,1701.7,1.17441]
[1745349391026,1.17444,1701.7,1701.6,7.85595]
[1745349391223,1.17442,1701.8,1701.7,1.17442]
[1745349391424,2.93672,1701.8,1701.7,1.17442]
[1745349391828,1.17444,1701.7,1701.6,7.02095]
[1745349392029,2.93674,1701.7,1701.6,7.02095]
[1745349392730,2.93674,1701.7,1701.6,3.81315]
[1745349392931,1.7623,1701.7,1701.6,3.81315]
[1745349394630,1.17436,1701.9,1701.6,5.57499]
[1745349394828,2.88396,1701.9,1701.8,1.17434]
[1745349396022,1.7096,1701.9,1701.8,1.17434]
[1745349396230,46.46591238,1702.0,1701.9,1.17431]
[1745349396537,47.64015238,1702.0,1701.9,1.17431]
[1745349396835,47.64015238,1702.0,1701.9,2.92011]
[1745349397033,48.14141238,1702.0,1701.9,2.92011]
[1745349398134,48.14141238,1702.0,1701.9,9.24211]
[1745349398433,45.36965238,1702.0,1701.9,6.322]
[1745349399130,1.17432,1701.9,1701.7,5.53731]
[1745349399334,2.85612,1701.9,1701.8,1.17433]
[1745349400127,2.85612,1701.9,1701.8,7.49633]
[1745349401328,2.85612,1701.9,1701.8,9.25503]
[1745349401726,42.51991238,1702.0,1701.9,1.17431]
[1745349401925,41.67191238,1702.0,1701.9,2.95651]
[1745349402139,0.00881238,1702.0,1701.9,2.95651]
[1745349403331,0.00881238,1702.0,1701.9,9.27851]
[1745349404243,5.11903,1702.3,1702.2,1.1741]
[1745349404441,1.1741,1702.2,1702.1,4.38193]
[1745349404738,1.17417,1702.1,1702.0,3.4831]
[1745349404939,1.17417,1702.1,1702.0,3.83258]
[1745349405139,3.73907,1702.1,1702.0,10.15458]
[1745349405338,2.5649,1702.1,1702.0,10.15458]
[1745349405738,3.73907,1702.1,1702.0,10.15458]
[1745349406126,2.5649,1702.1,1702.0,10.15458]
[1745349408344,40.80881238,1702.2,1702.1,1.17417]
[1745349408841,40.80881238,1702.2,1702.1,2.80117]
[1745349409542,41.98291238,1702.2,1702.1,1.627]
[1745349409745,41.98291238,1702.2,1702.1,2.80117]
[1745349409943,43.77401238,1702.2,1702.1,2.80117]
[1745349410243,43.77401238,1702.2,1702.1,1.627]
[1745349410434,43.77401238,1702.2,1702.1,2.80117]
[1745349411248,43.77401238,1702.2,1702.1,1.627]
[1745349411431,43.77401238,1702.2,1702.1,2.80117]
[1745349412038,42.59991238,1702.2,1702.1,2.80117]
[1745349412237,43.77401238,1702.2,1702.1,2.80117]
[1745349412842,40.80881238,1702.2,1702.1,2.80117]
[1745349415049,0.00881238,1702.2,1702.1,2.80117]
[1745349415438,0.00881238,1702.2,1702.1,1.17417]
[1745349415643,1.73721238,1702.2,1702.1,2.80827]
[1745349415939,2.91131238,1702.2,1702.1,2.80827]
[1745349417450,3.72311238,1702.2,1702.1,2.80827]
[1745349418151,1.17417,1702.1,1702.0,8.37238]
[1745349418349,2.86217,1702.1,1702.0,8.37238]
[1745349420553,1.688,1702.1,1702.0,10.06878]
[1745349420758,2.86217,1702.1,1702.0,10.06878]
[1745349421655,3.74687,1702.1,1702.0,6.322]
[1745349422268,1.17424,1702.0,1701.9,1.18308238]
[1745349422572,3.74694,1702.1,1702.0,1.17424]
[1745349422870,1.17424,1702.0,1701.9,1.18311238]
[1745349423168,1.17424,1702.0,1701.9,0.00881238]
[1745349423962,1.17424,1702.0,1701.9,1.18312238]
[1745349425164,9.38204,1702.0,1701.9,6.31318762]
[1745349426274,1.17431,1701.9,1701.8,1.18317238]
[1745349426570,2.02341,1701.9,1701.8,1.18317238]
[1745349426969,2.02341,1701.9,1701.8,0.00881238]
[1745349428362,10.96741,1701.9,1701.8,0.00881238]
[1745349429570,10.96741,1701.9,1701.8,2.38e-06]
[1745349429772,16.87741,1701.9,1701.8,2.38e-06]
[1745349429972,57.67741,1701.9,1701.8,2.38e-06]
[1745349430766,52.67741,1701.9,1701.8,2.38e-06]
[1745349431162,57.67741,1701.9,1701.8,2.38e-06]
[1745349436576,52.67741,1701.9,1701.8,2.38e-06]
[1745349437876,57.67741,1701.9,1701.8,2.38e-06]
[1745349438079,63.99941,1701.9,1701.8,2.38e-06]
[1745349438473,58.99941,1701.9,1701.8,2.38e-06]
[1745349439781,60.64261,1701.9,1701.8,2.38e-06]
[1745349440174,65.73341999,1701.9,1701.8,2.38e-06]
[1745349440981,60.64261,1701.9,1701.8,2.38e-06]
[1745349441168,54.32061,1701.9,1701.8,2.38e-06]
[1745349441371,51.82831,1701.9,1701.8,2.38e-06]
[1745349441683,51.82831,1701.9,1701.8,6.17437238]
[1745349441684,45.91831,1701.9,1701.8,6.17437238]
[1745349442081,45.91831,1701.9,1701.8,14.13277238]
[1745349442783,44.744,1701.9,1701.8,14.13277238]
[1745349443080,3.944,1701.9,1701.8,14.13277238]
[1745349443287,0.00881238,1702.2,1701.9,2.93577]
[1745349443481,0.00881238,1702.2,1702.1,1.17417]
[1745349443876,0.00881238,1702.2,1702.1,8.63617]
[1745349444386,44.745,1702.5,1702.4,1.17396]
[1745349444587,40.8,1702.5,1702.4,1.17396]
[1745349445084,40.8,1702.5,1702.4,3.63316]
[1745349445286,40.8,1702.5,1702.4,14.95516]
[1745349445482,0.00881238,1702.6,1702.5,1.17389]
[1745349445783,0.00881238,1702.6,1702.5,2.05759]
[1745349445984,0.00881238,1702.6,1702.5,7.05759]
[1745349446188,0.00881238,1702.6,1702.5,13.37959]
[1745349446390,1.18263238,1702.6,1702.5,12.2057]
[1745349446579,1.18263238,1702.6,1702.5,7.2057]
[1745349447189,1.18263238,1702.6,1702.5,0.8837]
[1745349448289,0.00881238,1702.6,1702.5,2.05759]
[1745349448787,1.18263238,1702.6,1702.5,0.8837]
[1745349451181,0.00881238,1702.6,1702.5,2.05759]
[1745349452195,0.00881238,1702.6,1702.5,8.37959]
[1745349452692,1.18263238,1702.6,1702.5,8.37959]
[1745349453380,0.00881238,1702.6,1702.5,8.37959]
[1745349454383,1.18263238,1702.6,1702.5,7.2057]
[1745349454779,2.83253238,1702.6,1702.5,7.2057]
[1745349454982,2.83253238,1702.6,1702.5,6.322]
[1745349455288,1.17389,1702.5,1702.4,0.8322]
[1745349455585,45.91689,1702.5,1702.4,0.8322]
[1745349456487,45.91689,1702.5,1702.4,2.00616]
[1745349456785,45.91689,1702.5,1702.4,0.8322]
[1745349459595,45.91689,1702.5,1702.4,2.4971]
[1745349460690,45.91689,1702.5,1702.4,3.67106]
[1745349460992,45.91689,1702.5,1702.4,2.4971]
[1745349461288,45.91689,1702.5,1702.4,3.67106]
[1745349461478,45.91689,1702.5,1702.4,2.4971]
[1745349461988,45.91689,1702.5,1702.4,3.67106]
[1745349463288,45.91689,1702.5,1702.4,8.8191]
[1745349463490,45.91689,1702.5,1702.4,6.322]
[1745349463687,49.12469,1702.5,1702.4,6.322]
[1745349464185,1.17403,1702.3,1702.2,4.5912]
[1745349465089,1.17403,1702.3,1702.2,10.9132]
[1745349466294,1.17403,1702.3,1702.2,4.5912]
[1745349467195,1.17403,1702.3,1702.2,10.9132]
[1745349467692,2.90758,1702.4,1702.3,1.17403]
[1745349467891,1.17398,1702.4,1702.3,2.84723]
[1745349468393,1.17398,1702.4,1702.3,9.16923]
[1745349469595,2.82518,1702.4,1702.3,9.16923]
[1745349471996,2.82518,1702.4,1702.3,7.9952]
[1745349472197,3.69168,1702.4,1702.3,7.9952]
[1745349472399,3.69168,1702.4,1702.3,9.16923]
[1745349472593,3.69168,1702.4,1702.3,7.9952]
[1745349473395,3.69168,1702.4,1702.3,6.322]
[1745349474191,3.69168,1702.4,1702.3,7.49603]
[1745349474592,3.69168,1702.4,1702.3,9.23173]
[1745349477595,3.69168,1702.4,1702.3,8.0577]
[1745349478504,3.69168,1702.4,1702.3,9.23173]
[1745349480591,11.89948,1702.4,1702.3,6.31318762]
[1745349480792,17.80948,1702.4,1702.3,6.31318762]
[1745349481199,1.1741,1702.2,1702.1,1.17414]
[1745349481403,5.1171,1702.2,1702.1,1.17414]
[1745349481905,6.7396,1702.2,1702.1,2.94844]
[1745349483506,6.7396,1702.2,1702.1,1.7743]
[1745349483809,1.17417,1702.1,1702.0,7.9589]
[1745349484100,2.84737,1702.1,1702.0,7.9589]
[1745349484905,2.84737,1702.1,1702.0,9.13314]
[1745349485099,2.84737,1702.1,1702.0,10.92004]
[1745349485300,1.17417,1702.1,1702.0,10.92004]
[1745349489203,6.79034,1702.2,1702.1,1.17417]
[1745349489507,5.11714,1702.2,1702.1,2.79487]
[1745349490113,1.17417,1702.1,1702.0,6.322]
[1745349490311,9.66537,1702.1,1702.0,6.322]
[1745349490509,14.66537,1702.1,1702.0,6.322]
[1745349490810,14.66537,1702.1,1702.0,6.00716698]
[1745349491210,1.17431,1701.9,1701.8,1.17437238]
[1745349491411,5.11631,1701.9,1701.8,1.17437238]
[1745349491811,6.85101,1701.9,1701.8,1.17437238]
[1745349493213,6.85101,1701.9,1701.8,7.49637238]
[1745349493708,6.85101,1701.9,1701.8,6.32200238]
[1745349494306,6.85101,1701.9,1701.8,7.49637238]
[1745349494711,6.85101,1701.9,1701.8,8.38597238]
[1745349496309,6.85101,1701.9,1701.8,7.21160238]
[1745349496703,6.85101,1701.9,1701.8,8.38597238]
[1745349497504,6.85101,1701.9,1701.8,7.21160238]
[1745349497709,6.85101,1701.9,1701.8,8.38597238]
[1745349497912,6.85101,1701.9,1701.8,10.08737238]
[1745349503617,6.85101,1701.9,1701.8,8.91300238]
[1745349504014,6.85101,1701.9,1701.8,6.32200238]
[1745349504214,11.85101,1701.9,1701.8,2.38e-06]
[1745349504612,17.76101,1701.9,1701.8,2.38e-06]
[1745349504820,17.85181697,1701.9,1701.8,2.38e-06]
[1745349505122,1.17472,1701.3,1701.2,2.80076]
[1745349505721,2.92742,1701.3,1701.2,2.80076]
[1745349506318,2.92742,1701.3,1701.2,6.322]
[1745349506518,6.13522,1701.3,1701.2,6.322]
[1745349507323,1.17479,1701.2,1701.1,0.00881238]
[1745349507523,2.92749,1701.2,1701.1,0.00881238]
[1745349508224,43.72749,1701.2,1701.1,0.00881238]
[1745349509622,43.72749,1701.2,1701.1,1.78121238]
[1745349509825,41.97479,1701.2,1701.1,1.78121238]
[1745349510024,41.97479,1701.2,1701.1,2.63581238]
[1745349510327,43.71139,1701.2,1701.1,2.63581238]
[1745349512326,43.71139,1701.2,1701.1,0.00881238]
[1745349512824,43.71139,1701.2,1701.1,1.73851238]
[1745349513124,43.71139,1701.2,1701.1,0.00881238]
[1745349518726,48.71139,1701.2,1701.1,0.00881238]
[1745349518925,54.62139,1701.2,1701.1,2.38e-06]
[1745349519126,60.94339,1701.2,1701.1,2.38e-06]
[1745349520028,55.94339,1701.2,1701.1,2.38e-06]
[1745349520229,49.62139,1701.2,1701.1,2.38e-06]
[1745349521230,54.62139,1701.2,1701.1,2.38e-06]
[1745349522624,49.62139,1701.2,1701.1,2.38e-06]
[1745349524131,52.82919,1701.2,1701.1,2.38e-06]
[1745349524428,52.92004023,1701.2,1701.1,2.38e-06]
[1745349525825,52.82919,1701.2,1701.1,2.38e-06]
[1745349526033,52.92004066,1701.2,1701.1,2.38e-06]
[1745349526227,52.82919,1701.2,1701.1,2.38e-06]
[1745349528031,52.92004189,1701.2,1701.1,2.38e-06]
[1745349528631,52.82919,1701.2,1701.1,2.38e-06]
[1745349532133,51.09259,1701.2,1701.1,1.65180238]
[1745349532931,52.72179,1701.2,1701.1,1.65180238]
[1745349538936,52.72179,1701.2,1701.1,0.9170413]
[1745349539237,45.18259,1701.2,1701.1,2.0919013]
[1745349540333,45.18259,1701.2,1701.1,0.9170413]
[1745349540838,46.88489,1701.2,1701.1,0.9170413]
[1745349543336,1.17476,1701.3,1701.1,11.14491]
[1745349543537,1.17476,1701.3,1701.2,3.64902]
[1745349544136,1.17476,1701.3,1701.2,9.97102]
[1745349547133,41.98348238,1701.4,1701.3,1.17472]
[1745349547329,1.18348238,1701.4,1701.3,3.77882]
[1745349547838,41.98348238,1701.4,1701.3,2.6041]
[1745349548237,41.98348238,1701.4,1701.3,8.9261]
[1745349548943,41.98348238,1701.4,1701.3,6.322]
[1745349549144,1.17472,1701.3,1701.2,0.8341]
[1745349549346,6.08732,1701.3,1701.2,0.8341]
[1745349549545,6.08732,1701.3,1701.2,2.5403]
[1745349550452,1.17486,1701.1,1701.0,0.00881238]
[1745349550641,4.38266,1701.1,1701.0,0.00881238]
[1745349550941,15.29266,1701.1,1701.0,0.00881238]
[1745349551136,16.10916,1701.1,1701.0,0.00881238]
[1745349551447,58.53266,1701.1,1701.0,0.00881238]
[1745349551947,58.62351578,1701.1,1701.0,2.38e-06]
[1745349552244,1.1752,1700.6,1700.5,3.3526]
[1745349552847,2.7987,1700.6,1700.5,3.3526]
[1745349553252,2.7987,1700.6,1700.5,9.6746]
[1745349554146,2.7987,1700.6,1700.5,3.3526]
[1745349554752,1.17527,1700.5,1700.4,0.00881238]
[1745349555047,2.94237,1700.5,1700.4,0.00881238]
[1745349555248,2.94237,1700.5,1700.4,6.33081238]
[1745349555949,2.94237,1700.5,1700.4,8.97001238]
[1745349556944,2.94237,1700.5,1700.4,10.14535238]
[1745349557247,1.17527,1700.5,1700.4,10.14535238]
[1745349557644,1.17527,1700.5,1700.4,8.97001238]
[1745349560447,4.38307,1700.5,1700.4,6.33081238]
[1745349560858,6.16287,1700.5,1700.4,6.33081238]
[1745349561250,6.16287,1700.5,1700.4,0.00881238]
[1745349561650,40.8,1700.5,1700.4,1.18415238]
[1745349561850,41.97527,1700.5,1700.4,2.91865238]
[1745349562252,41.97527,1700.5,1700.4,9.24065238]
[1745349562952,40.8,1700.5,1700.4,9.24065238]
[1745349563149,40.8,1700.5,1700.4,14.24065238]
[1745349563350,40.8,1700.5,1700.4,17.44845238]
[1745349563854,1.17526,1700.6,1700.5,1.17527]
[1745349564054,1.17526,1700.6,1700.5,3.61527]
[1745349564254,1.17526,1700.6,1700.5,0.8086]
[1745349564458,41.97526,1700.6,1700.5,2.44]
[1745349564751,40.8,1700.6,1700.5,3.61527]
[1745349564947,40.8,1700.6,1700.5,8.61527]
[1745349565144,40.8,1700.6,1700.5,14.93727]
[1745349565547,40.8,1700.6,1700.5,9.93727]
[1745349565749,41.9752,1700.6,1700.5,9.93727]
[1745349566753,15.9983,1700.9,1700.8,1.17507]
[1745349566754,7.1508,1700.9,1700.8,1.17507]
[1745349567145,7.1508,1700.9,1700.8,7.49707]
[1745349567348,40.8,1700.9,1700.8,10.70487]
[1745349567648,1.17493,1701.1,1701.0,1.1749]
[1745349567846,5.7207,1701.2,1701.0,1.1749]
[1745349568055,47.69554,1701.2,1701.1,2.84166]
[1745349568658,47.69554,1701.2,1701.1,3.72936]
[1745349569154,45.91784,1701.2,1701.1,3.72936]
[1745349569343,5.11784,1701.2,1701.1,3.72936]
[1745349570242,6.85494,1701.2,1701.1,3.72936]
[1745349571051,2.91194,1701.2,1701.1,3.72936]
[1745349571854,1.17486,1701.1,1701.0,6.322]
[1745349572161,2.82166,1701.1,1701.0,7.49693]
[1745349572655,2.82166,1701.1,1701.0,9.26803]
[1745349573456,0.8782,1701.2,1701.1,1.17486]
[1745349573663,43.62159,1701.3,1701.2,1.17479]
[1745349574151,1.17479,1701.2,1701.1,2.94591]
[1745349580371,2.85539,1701.2,1701.1,1.7711]
[1745349580566,2.85539,1701.2,1701.1,2.94596]
[1745349582580,2.85539,1701.2,1701.1,1.7711]
[1745349582771,2.85539,1701.2,1701.1,1.17486]
[1745349584081,1.6806,1701.2,1701.1,1.17486]
[1745349584284,2.85539,1701.2,1701.1,2.89406]
[1745349584675,1.17479,1701.2,1701.1,2.89406]
[1745349585377,43.67397,1701.3,1701.2,1.17479]
[1745349585679,40.8,1701.3,1701.2,4.61509]
[1745349586277,40.8,1701.3,1701.2,10.93709]
[1745349586987,4.61780238,1701.4,1701.3,1.17472]
[1745349587176,4.61780238,1701.4,1701.3,9.13442]
[1745349587687,0.00881238,1701.4,1701.3,9.13442]
[1745349589583,1.18346238,1701.4,1701.3,9.13442]
[1745349590086,2.84986238,1701.4,1701.3,9.13442]
[1745349592580,4.56106238,1701.4,1701.3,6.322]
[1745349593186,7.76886238,1701.4,1701.3,6.322]
[1745349593383,12.76886238,1701.4,1701.3,6.322]
[1745349593690,7.76886238,1701.4,1701.3,6.322]
[1745349594199,4.56106238,1701.4,1701.3,7.49672]
[1745349594494,4.56106238,1701.4,1701.3,6.322]
[1745349594992,4.56106238,1701.4,1701.3,7.49672]
[1745349595287,4.56106238,1701.4,1701.3,1.17472]
[1745349595491,3.38641238,1701.4,1701.3,1.17472]
[1745349595692,2.84986238,1701.4,1701.3,1.17472]
[1745349596090,2.84986238,1701.4,1701.2,7.49674]
[1745349596091,1.17472,1701.3,1701.2,7.49674]
[1745349596294,1.17472,1701.3,1701.2,1.17474]
[1745349596295,2.94622,1701.3,1701.2,1.17474]
[1745349601399,1.7715,1701.3,1701.2,1.17474]
[1745349601599,2.02590238,1701.4,1701.3,1.17472]
[1745349601899,2.02590238,1701.4,1701.3,2.87522]
[1745349602199,3.77600238,1701.4,1701.3,9.19722]
[1745349604092,3.77600238,1701.4,1701.3,7.49672]
[1745349606297,2.93356238,1701.4,1701.3,9.20022]
[1745349606600,0.00881238,1701.4,1701.3,9.20022]
[1745349607293,1.18346238,1701.4,1701.3,9.20022]
[1745349607493,0.00881238,1701.4,1701.3,9.20022]
[1745349610404,0.00881238,1701.4,1701.3,12.40802]
[1745349610998,1.18346238,1701.4,1701.3,12.40802]
[1745349611398,3.80756238,1701.4,1701.3,7.49672]
[1745349611599,3.80756238,1701.4,1701.3,6.322]
[1745349612099,7.01536238,1701.4,1701.3,6.322]
[1745349612305,7.01536238,1701.4,1701.1,2.0581]
[1745349612306,1.17479,1701.2,1701.1,2.0581]
[1745349612897,2.00469,1701.2,1701.1,2.0581]
[1745349613702,4.0377,1701.2,1701.0,8.0074]
[1745349613901,7.71076,1701.1,1701.0,6.322]
[1745349614102,12.4459,1701.1,1701.0,6.322]
[1745349614401,13.6208,1701.1,1701.0,1.17493]
[1745349614903,8.8018,1701.1,1701.0,1.17493]
[1745349615100,1.17475,1701.3,1701.2,1.17474]
[1745349615606,1.6997,1701.3,1701.2,1.17474]
[1745349615905,1.17479,1701.2,1701.1,1.6832]
[1745349616106,1.17479,1701.2,1701.1,2.85806]
[1745349616402,1.6997,1701.3,1701.1,1.6832]
[1745349616601,0.00881238,1701.4,1701.3,1.17472]
[1745349617202,0.00881238,1701.4,1701.3,9.17992]
[1745349619101,0.00881238,1701.4,1701.3,12.38772]
[1745349625003,0.00881238,1701.4,1701.3,9.17992]
[1745349626410,1.18346238,1701.4,1701.3,9.17992]
[1745349626716,4.63356238,1701.4,1701.3,7.49672]
[1745349627718,22.69036238,1701.4,1701.3,6.322]
[1745349628214,1.17486,1701.1,1701.0,1.17492]
[1745349629109,2.88716,1701.1,1701.0,1.17492]
[1745349629306,2.88716,1701.1,1701.0,6.322]
[1745349629706,4.57236,1701.1,1701.0,7.49693]
[1745349630113,1.17507,1700.8,1700.7,1.17508]
[1745349630314,1.17504,1700.9,1700.8,1.17501]
[1745349631212,1.17504,1700.9,1700.8,7.49701]
[1745349631514,1.6504,1701.0,1700.9,1.175]
[1745349631718,9.85781238,1701.4,1701.2,1.17472]
[1745349632028,2.82514,1701.3,1701.2,1.17472]
[1745349632220,1.6504,1701.3,1701.2,7.49672]
[1745349632610,1.6504,1701.3,1701.2,9.28702]